lending/lending_fUSD_20260312
["ID","MTS","AMOUNT","RATE_DAILY","PERIOD"]
[408262065,1773329480140,-1000.0,0.00046645,2]
[408262066,1773329480150,-1000.0,0.00046645,2]
[408262067,1773329480159,-1000.0,0.00046645,2]
[408262068,1773329480168,-1000.0,0.00046645,2]
[408262069,1773329480178,-1000.0,0.00046645,2]
[408262070,1773329480187,-951.03,0.00046645,2]
[408262071,1773329480197,-775.37,0.00046645,120]
[408262072,1773329480207,-14092.75284927,0.00046645,120]
[408262073,1773329480217,-227.65576859,0.00046658,30]
[408262074,1773329480226,-10041.34944347,0.00046667,120]
[408262075,1773329480236,-156.58617653,0.00046814,2]
[408262076,1773329480247,-1005.6004205,0.00046845,3]
[408262077,1773329480256,-227.65576859,0.00046849,30]
[408262078,1773329480266,-151.5,0.00046869,2]
[408262079,1773329480276,-1000.0,0.000469,90]
[408262080,1773329480285,-400.0,0.000469,120]
[408262081,1773329480295,-2006.39,0.0004698,120]
[408262082,1773329480306,-2000.0,0.0004699,120]
[408262083,1773329480315,-68027.48176373,0.00046998,120]
[408262084,1773329480325,-596.0,0.00047,7]
[408262085,1773329480335,-7849.0,0.00047,120]
[408262086,1773329480344,-5000.0,0.00047,120]
[408262087,1773329480354,-20000.0,0.00047,30]
[408262088,1773329480363,-10001.0,0.00047,120]
[408262089,1773329480373,-294.93,0.00047,30]
[408262090,1773329480383,-12983.2,0.00047,30]
[408262091,1773329480392,-150.0,0.00047,30]
[408262092,1773329480402,-150.0,0.00047,30]
[408262093,1773329480412,-274.55589851,0.00047,60]
[408262094,1773329480421,-227.65576859,0.00047014,30]
[408262095,1773329480430,-156.58617653,0.00047088,2]
[408262096,1773329480440,-227.65576859,0.00047205,30]
[408262097,1773329480449,-10041.34944347,0.00047222,120]
[408262098,1773329480459,-200.97907247,0.000473,120]
[408262099,1773329480468,-180.89516955,0.000473,120]
[408262100,1773329480478,-6834.23,0.000473,120]
[408262101,1773329480487,-500.0,0.00047302,60]
[408262102,1773329480497,-227.19815192,0.00047313,120]
[408262103,1773329480506,-218.07705611,0.00047313,120]
[408262104,1773329480515,-217.80954864,0.00047313,120]
[408262105,1773329480526,-208.08121381,0.00047345,9]
[408262106,1773329480535,-156.58617653,0.00047362,2]
[408262107,1773329480545,-8841.19856508,0.00047392,113]
[408262108,1773329480554,-263.07392655,0.00047397,4]
[408262109,1773329480564,-843.0,0.00047397,120]
[408262110,1773329480573,-212.750415,0.000474,30]
[408262111,1773329480583,-156.0,0.000474,120]
[408262112,1773329480592,-150.0,0.00047429,30]
[408262113,1773329480602,-150.0,0.00047429,30]
[408262114,1773329480611,-318.67920301,0.00047471,100]
[408262115,1773329480620,-8000.0,0.00047472,30]
[408262116,1773329480630,-151.5,0.00047499,2]
[408262117,1773329480640,-218.8059502,0.000475,120]
[408262118,1773329480650,-461.4898904,0.000475,120]
[408262119,1773329480659,-150.0,0.000475,120]
[408262120,1773329480669,-5500.0,0.000475,120]
[408262121,1773329480678,-270.95700472,0.000475,120]
[408262122,1773329480688,-251.00325021,0.000475,120]
[408262123,1773329480697,-151.5,0.00047524,2]
[408262124,1773329480707,-4837.58131642,0.0004753,30]
[408262125,1773329480717,-443.75453568,0.00047536,28]
[408262126,1773329480727,-1938.43,0.00047607,120]
[408262127,1773329480736,-1938.45,0.00047607,120]
[408262128,1773329480746,-1938.45,0.00047607,120]
[408262129,1773329480756,-1938.45,0.00047607,120]
[408262130,1773329480765,-1938.45,0.00047607,120]
[408262131,1773329480775,-1938.45,0.00047607,120]
[408262132,1773329480785,-1938.45,0.00047607,120]
[408262133,1773329480798,-1938.45,0.00047607,120]
[408262134,1773329480820,-1938.45,0.00047607,120]
[408262135,1773329480839,-1938.45,0.00047607,120]
[408262136,1773329480863,-1938.45,0.00047607,120]
[408262137,1773329480881,-1938.45,0.00047607,120]
[408262138,1773329480899,-1938.45,0.00047607,120]
[408262139,1773329480917,-1938.45,0.00047607,120]
[408262140,1773329480936,-1938.45,0.00047607,120]
[408262141,1773329480957,-1938.45,0.00047607,120]
[408262142,1773329480974,-1938.45,0.00047607,120]
[408262143,1773329480994,-1938.45,0.00047607,120]
[408262144,1773329481010,-1938.45,0.00047607,120]
[408262145,1773329481028,-1938.45,0.00047607,120]
[408262146,1773329481048,-323.26,0.00047635,7]
[408262147,1773329481062,-300.5,0.00047635,7]
[408262148,1773329481080,-151.0,0.00047636,30]
[408262149,1773329481095,-156.58617653,0.00047636,2]
[408262150,1773329481111,-50000.0,0.00047644,55]
[408262151,1773329481126,-50000.0,0.00047644,56]
[408262152,1773329481141,-151.0,0.00047645,30]
[408262153,1773329481156,-399.30898938,0.00047645,2]
[408262154,1773329481170,-1210.0,0.00047645,2]
[408262155,1773329481184,-717.90653116,0.00047645,2]
[408262156,1773329481200,-355.70427795,0.00047645,2]
[408262157,1773329481215,-987.29670167,0.00047645,2]
[408262158,1773329481230,-1552.60820075,0.00047645,2]
[408262159,1773329481244,-1051.48585026,0.00047645,2]
[408262160,1773329481259,-501.10935765,0.00047645,2]
[408262161,1773329481274,-154.50549882,0.00047645,2]
[408262162,1773329481289,-1712.87169855,0.00047645,2]
[408262163,1773329481303,-254.40610723,0.00047645,2]
[408262164,1773329481317,-500.0,0.00047645,2]
[408262165,1773329481332,-1288.00126124,0.00047645,2]
[408262166,1773329481348,-248.46440142,0.00047645,2]
[408262167,1773329481362,-1063.59141533,0.00047645,2]
[408262168,1773329481376,-556.79463004,0.00047645,2]
[408262169,1773329481391,-599.74976756,0.00047645,2]
[408262170,1773329481407,-1339.29404275,0.00047645,2]
[408262171,1773329481422,-763.29357886,0.00047645,2]
[408262172,1773329481437,-187.92312245,0.00047645,2]
[408262173,1773329481451,-643.0,0.00047645,2]
[408262174,1773329481466,-990.96675842,0.00047645,2]
[408262175,1773329481479,-585.07766462,0.00047645,2]
[408262176,1773329481494,-179.04778975,0.00047645,2]
[408262177,1773329481509,-158.65167383,0.00047645,2]
[408262178,1773329481524,-493.64120083,0.00047645,2]
[408262179,1773329481538,-550.0,0.00047645,2]
[408262180,1773329481553,-233.61525681,0.00047645,2]
[408262181,1773329481569,-177.2948722,0.00047645,2]
[408262182,1773329481583,-382.9941998,0.00047645,2]
[408262183,1773329481599,-1304.76057428,0.00047645,2]
[408262184,1773329481613,-1054.37324852,0.00047645,2]
[408262185,1773329481627,-675.39845844,0.00047645,2]
[408262186,1773329481642,-639.47054566,0.00047645,2]
[408262187,1773329481658,-219.22461019,0.00047645,2]
[408262188,1773329481672,-1088.89740899,0.00047645,2]
[408262189,1773329481687,-349.21502268,0.00047645,2]
[408262190,1773329481702,-1100.0,0.00047645,2]
[408262191,1773329481716,-931.14149762,0.00047645,2]
[408262192,1773329481731,-1342.05595837,0.00047645,2]
[408262193,1773329481746,-491.61350015,0.00047645,2]
[408262194,1773329481760,-617.84513624,0.00047645,2]
[408262195,1773329481774,-1620.39167702,0.00047645,2]
[408262196,1773329481789,-559.73724739,0.00047645,2]
[408262197,1773329481803,-1032.86517633,0.00047645,2]
[408262198,1773329481817,-372.4188651,0.00047645,2]
[408262199,1773329481831,-1875.16577082,0.00047645,2]
[408262200,1773329481845,-6983.97465171,0.00047645,4]
[408262201,1773329481860,-1141.63402004,0.00047645,2]
[408262202,1773329481874,-5346.29317275,0.00047645,4]
[408262203,1773329481889,-278.98383175,0.00047645,2]
[408262204,1773329482040,-411.0139983,0.00047645,2]
[408262205,1773329482050,-207.13279744,0.00047645,2]
[408262206,1773329482059,-881.5738852,0.00047645,2]
[408262207,1773329482067,-288.77079033,0.00047645,2]
[408262208,1773329482075,-1144.5023372,0.00047645,2]
[408262209,1773329482083,-2218.6559661,0.00047645,2]
[408262210,1773329482093,-894.64837537,0.00047645,2]
[408262211,1773329482101,-470.324074,0.00047645,2]
[408262212,1773329482110,-150.0,0.00047645,2]
[408262213,1773329482119,-361.60644689,0.00047645,2]
[408262214,1773329482127,-203.70587614,0.00047645,2]
[408262215,1773329482137,-758.40774562,0.00047645,2]
[408262216,1773329482146,-1374.00030144,0.00047645,2]
[408262217,1773329482155,-200.77622519,0.00047645,2]
[408262218,1773329482164,-1525.29738939,0.00047645,2]
[408262219,1773329482173,-466.60557274,0.00047645,2]
[408262220,1773329482182,-407.06776612,0.00047645,2]
[408262221,1773329482191,-160.14380195,0.00047645,2]
[408262222,1773329482201,-550.5102481,0.00047645,2]
[408262223,1773329482211,-300119.69988007,0.00047645,2]
[408262224,1773329482220,-40000.0,0.00047645,30]
[408262225,1773329482229,-523.43338878,0.00047645,120]
[408262226,1773329482238,-1000.0,0.00047645,90]
[408262227,1773329482247,-1000.0,0.00047645,120]
[408262228,1773329482257,-1332.18708999,0.00047645,120]
[408262229,1773329482266,-1009.6975621,0.00047645,120]
[408262230,1773329482275,-1248.73394039,0.00047645,120]
[408262231,1773329482284,-2599.61727042,0.00047645,120]
[408262232,1773329482293,-171.22000467,0.00047645,120]
[408262233,1773329482303,-274.13930613,0.00047645,14]
[408262234,1773329482312,-283.0,0.00047645,120]
[408262235,1773329482322,-561.58258216,0.00047645,120]
[408262236,1773329482331,-281.63741627,0.00047645,60]
[408262237,1773329482340,-239.0,0.00047645,120]
[408262238,1773329482349,-400.0,0.00047645,120]
[408262239,1773329482358,-44254.9142,0.00047645,45]
[408262240,1773329482367,-44254.9142,0.00047645,45]
[408262241,1773329482377,-44254.9142,0.00047645,45]
[408262242,1773329482386,-44254.9142,0.00047645,45]
[408262243,1773329482396,-44254.9142,0.00047645,45]
[408262244,1773329482405,-320.0,0.00047645,120]
[408262245,1773329482413,-657.70243727,0.00047645,120]
[408262246,1773329482422,-3571.0656281,0.00047645,120]
[408262247,1773329482431,-689.65779943,0.00047645,120]
[408262248,1773329482439,-186.32988289,0.00047645,120]
[408262249,1773329482448,-296.1957019,0.00047645,30]
[408262250,1773329482459,-270.0,0.00047645,120]
[408262251,1773329482468,-2596.2877333,0.00047645,15]
[408262252,1773329482478,-218.82355627,0.00047645,120]
[408262253,1773329482487,-197.79668615,0.00047645,120]
[408262254,1773329482496,-974.28139971,0.00047645,30]
[408262255,1773329482505,-427.10024955,0.00047645,120]
[408262256,1773329482514,-5184.96928412,0.00047645,60]
[408262257,1773329482523,-559.4070514,0.00047645,45]
[408262258,1773329482532,-4315.28602292,0.00047645,90]
[408262259,1773329482541,-4730.49843296,0.00047645,40]
[408262260,1773329482551,-750.0,0.00047645,25]
[408262261,1773329482559,-1751.00779253,0.00047645,120]
[408262262,1773329482567,-222.36789982,0.00047645,30]
[408262263,1773329482577,-291.00422867,0.00047645,120]
[408262264,1773329482586,-5819.67740021,0.00047645,120]
[408262265,1773329482595,-4529.07718654,0.00047645,30]
[408262266,1773329482604,-18755.70777884,0.00047645,2]
[408262267,1773329482613,-8520.27514381,0.00047645,120]
[408262268,1773329482621,-1000.0,0.00047645,30]
[408262269,1773329482630,-1110.0,0.00047645,120]
[408262270,1773329482639,-1065.62874641,0.00047645,120]
[408262271,1773329482646,-160.0,0.00047645,120]
[408262272,1773329482656,-160.0,0.00047645,120]
[408262273,1773329482665,-160.0,0.00047645,120]
[408262274,1773329482674,-160.0,0.00047645,120]
[408262275,1773329482683,-160.0,0.00047645,120]
[408262276,1773329482692,-160.0,0.00047645,120]
[408262277,1773329482703,-160.0,0.00047645,120]
[408262278,1773329482712,-160.0,0.00047645,120]
[408262279,1773329482721,-160.0,0.00047645,120]
[408262280,1773329482731,-500.0,0.00047645,120]
[408262281,1773329482741,-500.0,0.00047645,120]
[408262282,1773329482750,-500.0,0.00047645,120]
[408262283,1773329482759,-500.0,0.00047645,120]
[408262284,1773329482768,-500.0,0.00047645,120]
[408262285,1773329482777,-500.0,0.00047645,120]
[408262286,1773329482786,-500.0,0.00047645,120]
[408262287,1773329482795,-160.0,0.00047645,120]
[408262288,1773329482804,-500.0,0.00047645,120]
[408262289,1773329482813,-500.0,0.00047645,120]
[408262290,1773329482822,-500.0,0.00047645,120]
[408262291,1773329482833,-500.0,0.00047645,120]
[408262292,1773329482842,-160.0,0.00047645,120]
[408262293,1773329482851,-500.0,0.00047645,120]
[408262294,1773329482860,-500.0,0.00047645,120]
[408262295,1773329482869,-500.0,0.00047645,120]
[408262296,1773329482878,-500.0,0.00047645,120]
[408262297,1773329482887,-500.0,0.00047645,120]
[408262298,1773329482896,-252.0,0.00047645,120]
[408262299,1773329482905,-500.0,0.00047645,120]
[408262300,1773329482915,-500.0,0.00047645,120]
[408262301,1773329482924,-500.0,0.00047645,120]
[408262302,1773329482933,-500.0,0.00047645,120]
[408262303,1773329482942,-341.13,0.00047645,30]
[408262304,1773329482951,-500.0,0.00047645,120]
[408262305,1773329482961,-100000.0,0.00047645,30]
[408262306,1773329482971,-3677.999999,0.00047645,30]
[408262307,1773329482980,-4790.0,0.00047645,120]
[408262308,1773329482989,-908.7290966,0.00047645,120]
[408262309,1773329482998,-180.0,0.00047645,60]
[408262310,1773329483007,-579509.62482481,0.00047645,60]
[408262311,1773329483020,-283.40512003,0.00047645,2]
[408262312,1773329483030,-3920.46460241,0.00047645,120]
[408262313,1773329483039,-8070.71307578,0.00047645,120]
[408262314,1773329483051,-50425.1,0.00047645,120]
[408262315,1773329483061,-15466.78947383,0.00047645,120]
[408262316,1773329483071,-114700.0,0.00047645,120]
[408262317,1773329483081,-185.53722038,0.00047645,30]
[408262318,1773329483094,-25000.0,0.00047645,120]
[408262319,1773329483104,-5000.0,0.00047645,30]
[408262320,1773329483114,-2500.0,0.00047645,30]
[408262321,1773329483123,-152.13632067,0.00047645,3]
[408262322,1773329483137,-250.0,0.00047645,30]
[408262323,1773329483147,-50000.0,0.00047645,44]
[408262324,1773329483156,-50000.0,0.00047645,46]
[408262325,1773329483165,-50000.0,0.00047645,47]
[408262326,1773329483176,-16855.7,0.00047645,30]
[408262327,1773329483185,-12957.5137448,0.00047645,30]
[408262328,1773329483195,-1285.40940044,0.00047645,120]
[408262329,1773329483211,-17640.3,0.00047645,120]
[408262330,1773329483221,-45129.86407724,0.00047645,30]
[408262331,1773329483230,-14047.1979554,0.00047645,30]
[408262332,1773329483241,-2712.103812,0.00047645,120]
[408262333,1773329483250,-60595.0,0.00047645,30]
[408262334,1773329483259,-5913954.68733104,0.00047645,30]
[408262335,1773329483268,-7349.59466661,0.00047645,30]
[408262336,1773329483277,-162366.47263086,0.00047645,30]
[408262337,1773329483286,-14779.73,0.00047645,120]
[408262338,1773329483295,-68854.97584839,0.00047645,30]
[408262339,1773329483305,-36322.28953802,0.00047645,30]
[408262340,1773329483314,-22771.68424952,0.00047645,30]
[408262341,1773329483323,-542252.087209,0.00047645,30]
[408262342,1773329483332,-101933.59566183,0.00047645,30]
[408262343,1773329483343,-500.0,0.00047645,2]
[408262344,1773329483352,-100000.0,0.00047645,45]
[408262345,1773329483362,-100000.0,0.00047645,45]
[408262346,1773329483371,-100000.0,0.00047645,45]
[408262347,1773329483380,-87000.0,0.00047645,45]
[408262348,1773329483390,-1110.0,0.00047645,30]
[408262349,1773329483399,-1110.0,0.00047645,30]
[408262350,1773329483409,-1110.0,0.00047645,30]
[408262351,1773329483420,-1110.0,0.00047645,30]
[408262352,1773329483429,-1109.69766525,0.00047645,30]
[408262353,1773329483439,-444.60781682,0.00047645,120]
[408262354,1773329483448,-17551.13552786,0.00047645,8]
[408262355,1773329483459,-1110.0,0.00047645,30]
[408262356,1773329483468,-534.50966743,0.00047645,120]
[408262357,1773329483477,-685.76,0.00047645,120]
[408262358,1773329483487,-1656.69,0.00047645,120]
[408262359,1773329483496,-23727.91956494,0.00047645,30]
[408262360,1773329483506,-612.83358645,0.00047645,120]
[408262361,1773329483515,-13648.96965542,0.00047645,30]
[408262362,1773329483524,-20497.75099342,0.00047645,120]
[408262363,1773329483534,-90000.0,0.00047645,120]
[408262364,1773329483543,-8330.11239841,0.00047645,120]
[408262365,1773329483652,-8529.22835361,0.00047645,120]
[408262366,1773329483662,-1000.0,0.00047645,60]
[408262367,1773329483672,-30000.0,0.00047645,120]
[408262368,1773329483681,-9244.13901299,0.00047645,120]
[408262369,1773329483691,-14671.70825435,0.00047645,120]
[408262370,1773329483702,-10540.45366522,0.00047645,120]
[408262371,1773329483711,-21627.27278129,0.00047645,15]
[408262372,1773329483720,-100000.0,0.00047645,60]
[408262373,1773329483730,-5000.0,0.00047645,120]
[408262374,1773329483740,-168.97039896,0.00047645,30]
[408262375,1773329483750,-484.20744848,0.00047645,2]
[408262376,1773329483760,-306.97,0.00047645,120]
[408262377,1773329483769,-10457.28091676,0.00047645,31]
[408262378,1773329483779,-156.17,0.00047645,2]
[408262379,1773329483788,-155.0,0.00047645,2]
[408262380,1773329483798,-62647.28491607,0.00047645,30]
[408262381,1773329483808,-5315.56120524,0.00047645,2]
[408262382,1773329483821,-2010.35435959,0.00047645,2]
[408262383,1773329483831,-507.25281609,0.00047645,2]
[408262384,1773329483840,-1618.03129721,0.00047645,2]
[408262385,1773329483849,-3582.86627818,0.00047645,120]
[408262386,1773329483859,-500.0,0.00047645,120]
[408262387,1773329483868,-4831.00344404,0.00047645,2]
[408262388,1773329483877,-151.0,0.00047645,30]
[408262389,1773329483887,-151.0,0.00047645,30]
[408262390,1773329483896,-151.0,0.00047645,30]
[408262391,1773329483906,-151.0,0.00047645,30]
[408262392,1773329483916,-5000.0,0.00047645,37]
[408262393,1773329483926,-2136.04,0.00047645,120]
[408262394,1773329483936,-151.0,0.00047645,30]
[408262395,1773329483946,-2856.71,0.00047645,120]
[408262396,1773329483961,-151.0,0.00047645,30]
[408262397,1773329483971,-151.0,0.00047645,30]
[408262398,1773329483980,-151.0,0.00047645,30]
[408262399,1773329483990,-151.0,0.00047645,30]
[408262400,1773329484000,-151.0,0.00047645,30]
[408262401,1773329484012,-151.0,0.00047645,30]
[408262402,1773329484026,-151.0,0.00047645,30]
[408262403,1773329484036,-151.0,0.00047645,30]
[408262404,1773329484046,-151.0,0.00047645,30]
[408262405,1773329484058,-151.0,0.00047645,30]
[408262406,1773329484067,-151.0,0.00047645,30]
[408262407,1773329484076,-151.0,0.00047645,30]
[408262408,1773329484088,-151.0,0.00047645,30]
[408262409,1773329484098,-151.0,0.00047645,30]
[408262410,1773329484107,-151.0,0.00047645,30]
[408262411,1773329484117,-151.0,0.00047645,30]
[408262412,1773329484127,-151.0,0.00047645,30]
[408262413,1773329484137,-151.0,0.00047645,30]
[408262414,1773329484147,-151.0,0.00047645,30]
[408262415,1773329484157,-151.0,0.00047645,30]
[408262416,1773329484166,-151.0,0.00047645,30]
[408262417,1773329484176,-151.0,0.00047645,30]
[408262418,1773329484185,-848.53635013,0.00047645,120]
[408262419,1773329484196,-151.0,0.00047645,30]
[408262420,1773329484206,-151.0,0.00047645,30]
[408262421,1773329484219,-151.0,0.00047645,30]
[408262422,1773329484229,-151.0,0.00047645,30]
[408262423,1773329484239,-151.0,0.00047645,30]
[408262424,1773329484249,-151.0,0.00047645,30]
[408262425,1773329484259,-151.0,0.00047645,30]
[408262426,1773329484268,-151.0,0.00047645,30]
[408262427,1773329484278,-151.0,0.00047645,30]
[408262428,1773329484287,-151.0,0.00047645,30]
[408262429,1773329484296,-151.0,0.00047645,30]
[408262430,1773329484306,-151.0,0.00047645,30]
[408262431,1773329484315,-151.0,0.00047645,30]
[408262432,1773329484325,-151.0,0.00047645,30]
[408262433,1773329484335,-151.0,0.00047645,30]
[408262434,1773329484344,-151.0,0.00047645,30]
[408262435,1773329484356,-151.0,0.00047645,30]
[408262436,1773329484366,-151.0,0.00047645,30]
[408262437,1773329484376,-166.26403372,0.00047645,120]
[408262438,1773329484385,-151.0,0.00047645,30]
[408262439,1773329484396,-151.0,0.00047645,30]
[408262440,1773329484405,-151.0,0.00047645,30]
[408262441,1773329484421,-151.0,0.00047645,30]
[408262442,1773329484432,-500.0,0.00047645,120]
[408262443,1773329484442,-151.0,0.00047645,30]
[408262444,1773329484453,-151.0,0.00047645,30]
[408262445,1773329484464,-151.0,0.00047645,30]
[408262446,1773329484473,-212.86,0.00047645,30]
[408262447,1773329484483,-151.0,0.00047645,30]
[408262448,1773329484493,-1904.72,0.00047645,2]
[408262449,1773329484502,-1904.72,0.00047645,2]
[408262450,1773329484512,-1904.72,0.00047645,2]
[408262451,1773329484521,-1904.72,0.00047645,2]
[408262452,1773329484532,-1904.72,0.00047645,2]
[408262453,1773329484542,-1904.72,0.00047645,2]
[408262454,1773329484552,-1904.72,0.00047645,2]
[408262455,1773329484561,-1904.72,0.00047645,2]
[408262456,1773329484571,-1904.72,0.00047645,2]
[408262457,1773329484581,-1904.72,0.00047645,2]
[408262458,1773329484591,-1904.72,0.00047645,2]
[408262459,1773329484600,-1904.72,0.00047645,2]
[408262460,1773329484609,-1904.72,0.00047645,2]
[408262461,1773329484622,-1904.72,0.00047645,2]
[408262462,1773329484632,-1904.72,0.00047645,2]
[408262463,1773329484641,-1904.72,0.00047645,2]
[408262464,1773329484651,-1904.72,0.00047645,2]
[408262465,1773329484660,-1904.72,0.00047645,2]
[408262466,1773329484670,-1904.72,0.00047645,2]
[408262467,1773329484679,-1904.72,0.00047645,2]
[408262468,1773329484688,-1904.72,0.00047645,2]
[408262469,1773329484697,-1904.72,0.00047645,2]
[408262470,1773329484708,-1904.72,0.00047645,2]
[408262471,1773329484718,-1904.90379142,0.00047645,2]
[408262472,1773329484728,-151.0,0.00047645,30]
[408262473,1773329484738,-151.0,0.00047645,30]
[408262474,1773329484748,-151.0,0.00047645,30]
[408262475,1773329484758,-151.0,0.00047645,30]
[408262476,1773329484767,-200.0,0.00047645,120]
[408262477,1773329484776,-151.0,0.00047645,30]
[408262478,1773329484786,-151.0,0.00047645,30]
[408262479,1773329484796,-151.0,0.00047645,30]
[408262480,1773329484805,-151.0,0.00047645,30]
[408262481,1773329484817,-151.0,0.00047645,30]
[408262482,1773329484827,-36528.4342321,0.00047645,120]
[408262483,1773329484836,-557.16,0.00047671,120]
[408262484,1773329484846,-206.42755379,0.00047678,120]
[408262485,1773329484855,-42692.0,0.000477,60]
[408262486,1773329484864,-150.0,0.0004775,30]
[408262487,1773329484874,-150.0,0.0004775,30]
[408262488,1773329484884,-150.0,0.0004775,30]
[408262489,1773329484893,-10041.34944347,0.00047778,120]
[408262490,1773329484903,-151.5,0.00047868,2]
[408262491,1773329484913,-232.72,0.00047873,30]
[408262492,1773329484923,-2500.0,0.00047895,120]
[408262493,1773329484932,-152.0,0.000479,84]
[408262494,1773329484942,-1036.76,0.000479,120]
[408262495,1773329484951,-151.5,0.00047933,2]
[408262496,1773329484963,-2506.0,0.00047945,120]
[408262497,1773329484973,-2500.0,0.00047945,120]
[408262498,1773329484982,-160.44989084,0.00048,2]
[408262499,1773329484991,-2120.6868024,0.00048,120]
[408262500,1773329485001,-500.0,0.00048,120]
[408262501,1773329485012,-419.0,0.00048,120]
[408262502,1773329485026,-710.10358148,0.00048,120]
[408262503,1773329485036,-4253.85593345,0.00048,120]
[408262504,1773329485046,-1285.40940044,0.00048,120]
[408262505,1773329485056,-612.83358645,0.00048,120]
[408262506,1773329485067,-93615.67,0.00048,14]
[408262507,1773329485076,-5379.52,0.00048,30]
[408262508,1773329485087,-7021.5,0.00048,30]
[408262509,1773329485097,-193.67,0.00048,30]
[408262510,1773329485107,-151.0,0.00048,60]
[408262511,1773329485117,-151.5,0.00048081,2]
[408262512,1773329485127,-2500.0,0.00048145,120]
[408262513,1773329485138,-2500.0,0.00048145,120]
[408262514,1773329485148,-2500.0,0.00048145,120]
[408262515,1773329485158,-151.5,0.00048147,2]
[408262516,1773329485167,-151.5,0.00048196,2]
[408262517,1773329485177,-587.52,0.000482,90]
[408262518,1773329485187,-152.0,0.000482,120]
[408262519,1773329485196,-151.5,0.0004822,2]
[408262520,1773329485206,-10041.34944347,0.00048333,120]
[408262521,1773329485215,-2193.71,0.00048348,120]
[408262522,1773329485225,-413.35,0.00048348,120]
[408262523,1773329485234,-179.37,0.00048348,120]
[408262524,1773329485244,-156.27000571,0.0004835,2]
[408262525,1773329485254,-3129.85,0.00048377,120]
[408262526,1773329485264,-500.0,0.00048398,60]
[408262527,1773329485273,-6514.62002536,0.000484,120]
[408262528,1773329485282,-2500.0,0.00048445,120]
[408262529,1773329485292,-800.91834548,0.00048493,7]
[408262530,1773329485302,-150.0,0.000485,30]
[408262531,1773329485312,-150.0,0.000485,30]
[408262532,1773329485322,-507.0,0.000485,31]
[408262533,1773329485331,-369.68,0.00048511,60]
[408262534,1773329485340,-1000.0,0.000486,120]
[408262535,1773329485349,-367.5671,0.000486,90]
[408262536,1773329485359,-10040.39251483,0.000486,120]
[408262537,1773329485368,-2500.0,0.00048645,120]
[408262538,1773329485377,-785.72640039,0.0004869,120]
[408262539,1773329485387,-100000.0,0.000487,60]
[408262540,1773329485396,-10234.0,0.000487,30]
[408262541,1773329485406,-150.0,0.00048714,30]
[408262542,1773329485416,-150.0,0.00048714,30]
[408262543,1773329485425,-151.5,0.00048718,2]
[408262544,1773329485434,-151.5,0.00048737,2]
[408262545,1773329485444,-50031.34204948,0.000488,60]
[408262546,1773329485454,-94894.66771087,0.000488,120]
[408262547,1773329485464,-193.12,0.000488,120]
[408262548,1773329485473,-5000.0,0.000488,120]
[408262549,1773329485482,-4955.4280047,0.000488,120]
[408262550,1773329485492,-1442.21109921,0.000488,2]
[408262551,1773329485501,-5000.0,0.000488,120]
[408262552,1773329485510,-150.0,0.00048823,30]
[408262553,1773329485519,-6260.52697129,0.00048823,30]
[408262554,1773329485528,-151.5,0.00048847,2]
[408262555,1773329485537,-20500.97294312,0.0004888,120]
[408262556,1773329485546,-10041.34944347,0.00048889,120]
[408262557,1773329485555,-179.48262139,0.00048899,120]
[408262558,1773329485563,-50032.74434927,0.000489,60]
[408262559,1773329485574,-150.0,0.000489,87]
[408262560,1773329485584,-180.99088793,0.000489,120]
[408262561,1773329485593,-180.99088792,0.000489,120]
[408262562,1773329485602,-1000.0,0.00049,120]
[408262563,1773329485621,-177.01030336,0.00049,120]
[408262564,1773329485630,-236.59245114,0.00049,90]